fUST/lending_fUST_20250808
["ID","MTS","AMOUNT","RATE_DAILY","PERIOD"]
[377964242,1754632247119,-866.21,0.00022739,2]
[377964244,1754632247131,-460.0,0.00022739,2]
[377964246,1754632247140,-460.0,0.00022739,2]
[377964248,1754632247149,-318.9979287,0.00022739,2]
[377964250,1754632247158,-460.0,0.00022739,2]
[377964252,1754632247167,-460.0,0.00022922,2]
[377964254,1754632247176,-160.0,0.00022943,2]
[377964256,1754632247185,-160.0,0.00022943,2]
[377964258,1754632247194,-215.36146706,0.00022943,2]
[377964259,1754632247203,-312.16666667,0.00022943,2]
[377964261,1754632247212,-11169.31827911,0.00022943,2]
[377964603,1754632265962,3894.8945999,0.00031853,30]
[377964604,1754632279611,320.0,0.00020011,7]
[377964608,1754632608083,12549.58403561,0.000199,2]
[377964612,1754632714178,12038.19962237,0.000199,2]
[377964616,1754632887855,-151.66578889,0.00020843,2]
[377964617,1754632887877,-30.32466384,0.00021304,2]
[377964618,1754632888186,11844.24006964,0.000199,2]
[377964619,1754632888213,110.8744818,0.000199,2]
[377964620,1754632890222,-160.0,0.00021304,2]
[377964621,1754632894846,-3.9715879,0.00021304,2]
[377964623,1754633055514,11534.15749022,0.000199,2]
[377964625,1754633084273,167.570273,0.00013699,2]
[377964636,1754633138941,-155.60954674,0.00021402,2]
[377964637,1754633156949,150.0,0.000189,2]
[377964639,1754633184964,-4.39045326,0.00021402,2]
[377964640,1754633184989,-1102.60954674,0.00021404,2]
[377964641,1754633227345,10000.0,0.000199,2]
[377964642,1754633227372,3844.5640436,0.000199,2]
[377964643,1754633304956,1080.21654923,0.00021304,2]
[377964647,1754633401583,5075.21940717,0.000199,2]
[377964648,1754633401614,8265.0847495,0.000199,2]
[377964725,1754633437500,-300.0,0.00021404,2]
[377964727,1754633437510,-1200.0,0.00021404,2]
[377964729,1754633437520,-3472.81692681,0.00021405,2]
[377964793,1754633438522,-21427.18307319,0.00021405,2]
[377964794,1754633438534,-13340.30415649,0.00021655,2]
[377964795,1754633438544,-274.45321749,0.00021917,2]
[377964796,1754633438553,-460.0,0.00021917,2]
[377964797,1754633438563,-565.34,0.00021917,2]
[377964798,1754633438573,-460.0,0.00021917,2]
[377964799,1754633438582,-460.0,0.00021917,2]
[377964800,1754633438592,-721.84,0.00021917,2]
[377964801,1754633438602,-460.0,0.00021917,2]
[377964802,1754633438612,-705.61,0.00021917,2]
[377964803,1754633438621,-460.0,0.00021917,2]
[377964804,1754633438631,-165.42010685,0.00021917,2]
[377964805,1754633438640,-221.67,0.00021917,2]
[377964806,1754633438650,-613.24,0.00021917,2]
[377964807,1754633438659,-460.0,0.00021917,2]
[377964808,1754633438668,-605.45,0.00021917,2]
[377964809,1754633438677,-250.0,0.00022183,2]
[377964810,1754633438686,-460.0,0.0002219,2]
[377964811,1754633438696,-460.0,0.0002219,2]
[377964812,1754633438705,-460.0,0.0002219,2]
[377964813,1754633438715,-460.0,0.0002219,2]
[377964814,1754633438724,-460.0,0.00022191,2]
[377964815,1754633438733,-460.0,0.00022191,2]
[377964816,1754633438743,-721.84,0.00022191,2]
[377964817,1754633438753,-460.0,0.00022191,2]
[377964818,1754633438763,-705.61,0.00022191,2]
[377964819,1754633438773,-460.0,0.00022191,2]
[377964820,1754633438784,-613.24,0.00022191,2]
[377964821,1754633438794,-460.0,0.00022191,2]
[377964822,1754633438804,-605.45,0.00022191,2]
[377964823,1754633438814,-7191.3786317,0.000222,2]
[377964824,1754633438823,-168.57435428,0.00022364,2]
[377964825,1754633438833,-460.0,0.00022464,2]
[377964826,1754633438842,-460.0,0.00022464,2]
[377964827,1754633438852,-460.0,0.00022464,2]
[377964828,1754633438861,-460.0,0.00022465,2]
[377964829,1754633438870,-460.0,0.00022465,2]
[377964830,1754633438880,-721.84,0.00022465,2]
[377964831,1754633438889,-460.0,0.00022465,2]
[377964832,1754633438899,-705.61,0.00022465,2]
[377964833,1754633438908,-460.0,0.00022465,2]
[377964834,1754633438918,-613.24,0.00022465,2]
[377964835,1754633438928,-460.0,0.00022465,2]
[377964836,1754633438937,-605.45,0.00022465,2]
[377964837,1754633438946,-200.0,0.00022474,15]
[377964838,1754633438958,-300.0,0.00022474,15]
[377964839,1754633438968,-407.0,0.00022486,2]
[377964840,1754633438978,-407.0,0.00022589,2]
[377964841,1754633438987,-10731.89641324,0.000227,2]
[377964842,1754633438997,-460.0,0.00022737,2]
[377964843,1754633439007,-460.0,0.00022737,2]
[377964844,1754633439017,-460.0,0.00022737,2]
[377964845,1754633439027,-460.0,0.00022738,2]
[377964846,1754633439036,-460.0,0.00022738,2]
[377964847,1754633439046,-460.0,0.00022738,2]
[377964848,1754633439056,-482.72,0.00022739,2]
[377964849,1754633439066,-460.0,0.00022739,2]
[377964850,1754633439076,-721.84,0.00022739,2]
[377964851,1754633439085,-460.0,0.00022739,2]
[377964852,1754633439095,-705.61,0.00022739,2]
[377964853,1754633439104,-460.0,0.00022739,2]
[377964854,1754633439114,-613.24,0.00022739,2]
[377964855,1754633439123,-460.0,0.00022739,2]
[377964856,1754633439133,-605.45,0.00022739,2]
[377964857,1754633439143,-10000.0,0.000228,2]
[377964858,1754633439152,-407.0,0.00022818,2]
[377964859,1754633439161,-407.0,0.00022832,2]
[377964860,1754633439171,-407.0,0.00022893,2]
[377964861,1754633439183,-10000.0,0.000229,2]
[377964862,1754633439192,-460.0,0.00022903,2]
[377964863,1754633439202,-460.0,0.00022903,2]
[377964864,1754633439211,-407.0,0.00022903,2]
[377964865,1754633439221,-160.0,0.00022936,2]
[377964866,1754633439230,-216.5651299,0.00022936,2]
[377964867,1754633439240,-160.0,0.00022936,2]
[377964868,1754633439249,-231.87430077,0.00022936,2]
[377964869,1754633439258,-527.68033864,0.00022936,2]
[377964870,1754633439267,-160.0,0.00022936,2]
[377964871,1754633439277,-461.45099301,0.00022936,2]
[377964872,1754633439286,-842.78739015,0.00022936,2]
[377964873,1754633439296,-160.0,0.00022936,2]
[377964874,1754633439305,-160.0,0.00022936,2]
[377964875,1754633439315,-215.36146706,0.00022936,2]
[377964876,1754633439325,-312.16666667,0.00022936,2]
[377964877,1754633439335,-12663.41139009,0.00022936,2]
[377964878,1754633439345,-578.22127067,0.00022943,2]
[377964879,1754633439354,-500.0,0.0002295,2]
[377964880,1754633439364,-168.57435428,0.00022995,2]
[377964881,1754633439373,-160.0,0.00023,2]
[377964882,1754633439383,-460.0,0.00023011,2]
[377964883,1754633439392,-460.0,0.00023011,2]
[377964884,1754633439402,-460.0,0.00023011,2]
[377964885,1754633439412,-460.0,0.00023012,2]
[377964886,1754633439421,-460.0,0.00023012,2]
[377964887,1754633439431,-460.0,0.00023012,2]
[377964888,1754633439440,-460.0,0.00023013,2]
[377964889,1754633439450,-721.84,0.00023013,2]
[377964890,1754633439460,-460.0,0.00023013,2]
[377964891,1754633439470,-705.61,0.00023013,2]
[377964892,1754633439479,-460.0,0.00023013,2]
[377964893,1754633439489,-613.24,0.00023013,2]
[377964894,1754633439499,-460.0,0.00023013,2]
[377964895,1754633439508,-605.45,0.00023013,2]
[377964896,1754633439518,-407.0,0.00023078,2]
[377964897,1754633439528,-5778.0,0.0002309,2]
[377964898,1754633439537,-504.88271123,0.00023125,2]
[377964899,1754633439546,-500.0,0.00023125,2]
[377964900,1754633439556,-500.0,0.00023125,2]
[377964901,1754633439566,-500.0,0.00023125,2]
[377964902,1754633439576,-200.0,0.00023125,2]
[377964903,1754633439586,-500.0,0.00023132,2]
[377964904,1754633439595,-460.0,0.00023177,2]
[377964905,1754633439605,-460.0,0.00023177,2]
[377964906,1754633439615,-160.0,0.00023267,2]
[377964907,1754633439625,-460.0,0.00023285,2]
[377964908,1754633439634,-460.0,0.00023285,2]
[377964909,1754633439643,-460.0,0.00023285,2]
[377964910,1754633439653,-407.0,0.00023285,2]
[377964911,1754633439662,-460.0,0.00023286,2]
[377964912,1754633439672,-460.0,0.00023286,2]
[377964913,1754633439681,-460.0,0.00023286,2]
[377964914,1754633439691,-460.0,0.00023287,2]
[377964915,1754633439700,-721.84,0.00023287,2]
[377964916,1754633439709,-460.0,0.00023287,2]
[377964917,1754633439718,-705.61,0.00023287,2]
[377964918,1754633439728,-460.0,0.00023287,2]
[377964919,1754633439738,-613.24,0.00023287,2]
[377964920,1754633439747,-460.0,0.00023287,2]
[377964921,1754633439757,-605.45,0.00023287,2]
[377964922,1754633439767,-166.76,0.0002329,3]
[377964923,1754633439778,-500.28,0.0002329,3]
[377964924,1754633439789,-974.42253957,0.000233,2]
[377964925,1754633439798,-10000.0,0.000233,2]
[377964926,1754633439808,-1680.0,0.00023383,2]
[377964927,1754633439818,-13340.30415649,0.00023409,2]
[377964928,1754633439827,-460.0,0.00023451,2]
[377964929,1754633439837,-460.0,0.00023451,2]
[377964930,1754633439846,-10000.0,0.000235,3]
[377964931,1754633439856,-216.5651299,0.000235,3]
[377964932,1754633439874,-312.16666667,0.000235,3]
[377964933,1754633439886,-231.87430077,0.000235,3]
[377964934,1754633439896,-215.36146706,0.000235,3]
[377964935,1754633439906,-160.0,0.000235,3]
[377964936,1754633439916,-461.45099301,0.000235,3]
[377964937,1754633439926,-160.0,0.000235,3]
[377964938,1754633439936,-160.0,0.000235,3]
[377964939,1754633439945,-527.68033864,0.000235,3]
[377964940,1754633439955,-842.78739015,0.000235,3]
[377964941,1754633439966,-160.0,0.000235,3]
[377964942,1754633439976,-12663.41139009,0.000235,3]
[377964943,1754633439986,-160.0,0.000235,3]
[377964944,1754633439996,-151.0,0.00023519,2]
[377964945,1754633440006,-151.20768216,0.00023519,2]
[377964946,1754633440016,-153.26475179,0.00023519,2]
[377964947,1754633440026,-151.0,0.00023519,2]
[377964948,1754633440036,-151.0,0.00023519,2]
[377964950,1754633440045,-151.0,0.00023519,2]
[377964952,1754633440055,-151.0,0.00023519,2]
[377964953,1754633440065,-151.0,0.00023519,2]
[377964954,1754633440075,-500.0,0.00023519,2]
[377964955,1754633440085,-151.0,0.00023519,2]
[377964956,1754633440095,-151.0,0.00023519,2]
[377964957,1754633440106,-151.0,0.00023519,2]
[377964958,1754633440116,-151.0,0.00023519,2]
[377964959,1754633440126,-151.0,0.00023519,2]
[377964960,1754633440136,-151.0,0.00023519,2]
[377964961,1754633440146,-151.0,0.00023519,2]
[377964963,1754633440155,-151.0,0.00023519,2]
[377964965,1754633440165,-151.0,0.00023519,2]
[377964967,1754633440174,-300.0,0.00023519,2]
[377964969,1754633440188,-250.0,0.00023519,2]
[377964971,1754633440199,-151.0,0.00023519,2]
[377964972,1754633440209,-324.88,0.0002352,2]
[377964973,1754633440219,-460.0,0.00023559,2]
[377964974,1754633440228,-460.0,0.00023559,2]
[377964975,1754633440238,-460.0,0.00023559,2]
[377964976,1754633440248,-460.0,0.0002356,2]
[377964977,1754633440259,-460.0,0.0002356,2]
[377964978,1754633440269,-460.0,0.0002356,2]
[377964979,1754633440279,-460.0,0.00023561,2]
[377964980,1754633440288,-721.84,0.00023561,2]
[377964981,1754633440298,-460.0,0.00023561,2]
[377964982,1754633440307,-705.61,0.00023561,2]
[377964983,1754633440317,-460.0,0.00023561,2]
[377964984,1754633440326,-613.24,0.00023561,2]
[377964985,1754633440337,-460.0,0.00023561,2]
[377964986,1754633440348,-605.45,0.00023561,2]
[377964987,1754633440357,-168.57435428,0.00023625,2]
[377964988,1754633440367,-4869.0,0.00023666,2]
[377964989,1754633440377,-460.0,0.00023725,2]
[377964990,1754633440387,-460.0,0.00023725,2]
[377964991,1754633440397,-5778.0,0.00023803,2]
[377964992,1754633440407,-260.0,0.00023815,2]
[377964993,1754633440416,-460.0,0.00023833,2]
[377964994,1754633440426,-460.0,0.00023833,2]
[377964995,1754633440436,-460.0,0.00023833,2]
[377964996,1754633440447,-460.0,0.00023834,2]
[377964998,1754633440457,-460.0,0.00023834,2]
[377965000,1754633440467,-460.0,0.00023834,2]
[377965002,1754633440478,-460.0,0.00023835,2]
[377965004,1754633440488,-721.84,0.00023835,2]
[377965006,1754633440499,-460.0,0.00023835,2]
[377965008,1754633440508,-705.61,0.00023835,2]
[377965010,1754633440518,-460.0,0.00023835,2]
[377965012,1754633440527,-613.24,0.00023835,2]
[377965014,1754633440538,-460.0,0.00023835,2]
[377965016,1754633440548,-605.45,0.00023835,2]
[377965018,1754633440558,-150.0,0.000239,2]
[377965020,1754633440568,-37227.98736899,0.0002399,2]
[377965022,1754633440578,-151.0,0.0002399,7]
[377965024,1754633440588,-328.211732,0.0002399,7]
[377965026,1754633440598,-328.211732,0.0002399,7]
[377965028,1754633440608,-505.895813,0.0002399,7]
[377965030,1754633440619,-505.895813,0.0002399,7]
[377965032,1754633440629,-212.25747,0.0002399,7]
[377965034,1754633440639,-151.0,0.0002399,7]
[377965036,1754633440648,-171.840944,0.0002399,7]
[377965038,1754633440659,-171.840944,0.0002399,7]
[377965040,1754633440669,-151.0,0.0002399,7]
[377965042,1754633440678,-151.539763,0.0002399,7]
[377965044,1754633440688,-460.0,0.00023999,2]
[377965046,1754633440697,-460.0,0.00023999,2]
[377965048,1754633440707,-6818.864701,0.00024,7]
[377965050,1754633440717,-150.0,0.00024032,2]
[377965053,1754633440729,-460.0,0.00024107,2]
[377965055,1754633440739,-460.0,0.00024107,2]
[377965057,1754633440748,-460.0,0.00024107,2]
[377965059,1754633440758,-460.0,0.00024108,2]
[377965061,1754633440769,-460.0,0.00024108,2]
[377965063,1754633440779,-321.92694774,0.00024108,2]
[377965065,1754633440789,-460.0,0.00024109,2]
[377965067,1754633440798,-721.84,0.00024109,2]
[377965069,1754633440807,-460.0,0.00024109,2]
[377965071,1754633440817,-705.61,0.00024109,2]
[377965073,1754633440827,-460.0,0.00024109,2]
[377965075,1754633440836,-613.24,0.00024109,2]
[377965077,1754633440845,-460.0,0.00024109,2]
[377965079,1754633440854,-605.45,0.00024109,2]
[377965081,1754633440864,-3768.0,0.00024142,2]
[377965083,1754633440874,-151.208748,0.00024142,7]
[377965085,1754633440883,-435.914919,0.00024142,7]
[377965087,1754633440893,-435.914919,0.00024142,7]
[377965089,1754633440903,-160.0,0.00024142,7]
[377965091,1754633440914,-310.948,0.000242,6]
[377965093,1754633440923,-502.37764578,0.00024273,2]
[377965095,1754633440934,-460.0,0.00024273,2]
[377965097,1754633440943,-636.0,0.00024349,2]
[377965099,1754633440956,-2149.0,0.00024349,2]
[377965101,1754633440965,-971.0,0.00024349,2]
[377965103,1754633440975,-360.0,0.00024363,2]
[377965105,1754633440984,-460.0,0.00024381,2]
[377965107,1754633440994,-460.0,0.00024381,2]
[377965109,1754633441003,-460.0,0.00024381,2]
[377965111,1754633441013,-460.0,0.00024382,2]
[377965113,1754633441022,-460.0,0.00024382,2]
[377965115,1754633441032,-460.0,0.00024383,2]
[377965117,1754633441042,-721.84,0.00024383,2]
[377965119,1754633441052,-346.78454394,0.00024383,2]
[377965121,1754633441061,-705.61,0.00024383,2]
[377965123,1754633441070,-460.0,0.00024383,2]
[377965125,1754633441080,-613.24,0.00024383,2]
[377965127,1754633441089,-460.0,0.00024383,2]
[377965129,1754633441099,-605.45,0.00024383,2]
[377965131,1754633441108,-247.0,0.00024384,2]
[377965133,1754633441118,-5000.0,0.00024409,2]
[377965135,1754633441128,-247.0,0.00024506,2]
[377965137,1754633441138,-3768.0,0.00024539,2]
[377965140,1754633441148,-460.0,0.00024547,2]
[377965142,1754633441158,-11960.49477556,0.00024555,2]
[377965144,1754633441167,-150.0,0.0002458,2]
[377965145,1754633441177,-150.0,0.0002458,2]
[377965147,1754633441190,-150.0,0.0002458,2]
[377965149,1754633441201,-150.0,0.0002458,2]
[377965152,1754633441210,-460.0,0.00024655,2]
[377965153,1754633441220,-460.0,0.00024655,2]
[377965155,1754633441230,-460.0,0.00024655,2]
[377965157,1754633441239,-460.0,0.00024656,2]
[377965160,1754633441249,-460.0,0.00024656,2]
[377965161,1754633441258,-460.0,0.00024657,2]
[377965164,1754633441268,-721.84,0.00024657,2]
[377965165,1754633441277,-705.61,0.00024657,2]
[377965167,1754633441287,-242.75525972,0.00024657,2]
[377965169,1754633441297,-613.24,0.00024657,2]
[377965171,1754633441307,-460.0,0.00024657,2]
[377965174,1754633441317,-605.45,0.00024657,2]
[377965175,1754633441327,-160.0,0.00024658,7]
[377965177,1754633441336,-12663.41139009,0.00024658,7]
[377965180,1754633441346,-151.0,0.00024658,7]
[377965182,1754633441355,-500.0,0.00024658,2]
[377965184,1754633441364,-333.52,0.0002466,3]
[377965186,1754633441374,-200.0,0.00024664,15]
[377965188,1754633441384,-200.0,0.00024664,15]
[377965190,1754633441393,-300.0,0.00024664,15]
[377965192,1754633441403,-151.0,0.000247,7]
[377965194,1754633441413,-151.0,0.000247,7]
[377965196,1754633441423,-151.0,0.000247,7]
[377965198,1754633441433,-309.49047631,0.00024799,2]
[377965200,1754633441443,-661.33733727,0.00024799,2]
[377965202,1754633441453,-661.33733727,0.00024799,2]
[377965204,1754633441463,-661.33733727,0.00024799,2]
[377965206,1754633441473,-508.24695577,0.00024799,2]
[377965589,1754633445346,-153.0903815,0.00024799,2]
[377965591,1754633445355,-661.33733727,0.00024799,2]
[377965593,1754633445365,-661.33733727,0.00024799,2]
[377965595,1754633445374,-661.33733727,0.00024799,2]
[377965597,1754633445384,-661.33733727,0.00024799,2]
[377965599,1754633445394,-661.33733727,0.00024799,2]
[377965601,1754633445403,-661.33733727,0.00024799,2]
[377965603,1754633445412,-369.59466233,0.00024799,2]
[377965609,1754633445462,-291.74267494,0.00024799,2]
[377965611,1754633445472,-661.33733727,0.00024799,2]
[377965613,1754633445481,-661.33733727,0.00024799,2]
[377965615,1754633445492,-449.1642733,0.000248,2]
[377965787,1754633447040,-49938.36443098,0.000248,2]
[377967828,1754633569864,1734.9152505,0.000199,2]
[377967829,1754633569890,10000.0,0.000199,2]
[377967830,1754633569916,270.46005886,0.000199,2]
[377967831,1754633617790,341.5715874,0.00021342,2]
[377967832,1754633673468,9387.96835374,0.00021338,2]
[377967833,1754633673493,10000.0,0.00021338,2]
[377967834,1754633673517,5512.03164626,0.00021338,2]
[377967837,1754633716239,156.610449,0.00027744,30]
[377967838,1754633719145,4487.96835374,0.000199,2]
[377967839,1754633719171,7206.17251164,0.000199,2]
[377967841,1754633761505,300.0,0.0003184,30]
[377967843,1754633894738,2793.82748836,0.000199,2]
[377967844,1754633894765,8510.35277916,0.000199,2]
[377967849,1754633932668,208.1126123,0.00021338,2]
[377967854,1754634166123,231.51492844,0.000199,2]
[377967855,1754634198939,-200.0,0.00022736,15]
[377967856,1754634198963,-300.0,0.00022736,15]
[377967857,1754634198988,-60.15,0.00023499,10]
[377967858,1754634199044,-174.92,0.00024951,15]
[377967859,1754634199114,-500.0,0.00023499,10]
[377967860,1754634199135,-672.18,0.00023499,10]
[377967861,1754634199157,-602.39,0.00023509,10]
[377967878,1754634472881,200.0,0.00022736,15]
[377967879,1754634473656,300.0,0.00022736,15]
[377967882,1754634525908,41437.22633457,0.0002489,30]
[377967894,1754634571213,167.570273,0.00013699,2]
[377967928,1754634632821,-179.65122183,0.00021554,2]
[377967929,1754634632832,-300.0,0.00021654,2]
[377967930,1754634632841,-1200.0,0.00021654,2]
[377967931,1754634632851,-1573.10358992,0.00021655,2]
[377967990,1754634638741,-9731.07667735,0.00021655,2]
[377967992,1754634638752,-460.0,0.00021917,2]
[377967994,1754634638762,-460.0,0.00021917,2]
[377967996,1754634638772,-460.0,0.00021917,2]
[377967998,1754634638781,-460.0,0.00021917,2]
[377968000,1754634638791,-460.0,0.0002219,2]
[377968002,1754634638800,-567.72135706,0.0002219,2]
[377968004,1754634638809,-460.0,0.0002219,2]
[377968006,1754634638820,-460.0,0.0002219,2]
[377968008,1754634638830,-460.0,0.0002219,2]
[377968010,1754634638839,-460.0,0.0002219,2]
[377968012,1754634638849,-463.13657044,0.00022191,2]
[377968014,1754634638858,-460.0,0.00022191,2]
[377968016,1754634638867,-460.0,0.00022191,2]
[377968018,1754634638876,-460.0,0.00022191,2]
[377968020,1754634638886,-412.61,0.0002223,2]
[377968022,1754634638895,-460.0,0.00022463,2]
[377968024,1754634638905,-460.0,0.00022463,2]
[377968026,1754634638914,-460.0,0.00022464,2]
[377968028,1754634638923,-460.0,0.00022464,2]
[377968030,1754634638932,-460.0,0.00022464,2]
[377968032,1754634638941,-460.0,0.00022464,2]
[377968034,1754634638950,-460.0,0.00022464,2]
[377968036,1754634638959,-460.0,0.00022465,2]
[377968038,1754634638969,-460.0,0.00022465,2]
[377968040,1754634638978,-460.0,0.00022465,2]
[377968042,1754634638987,-30000.0,0.00022637,2]
[377968044,1754634638996,-460.0,0.00022737,2]
[377968046,1754634639006,-460.0,0.00022737,2]
[377968048,1754634639014,-460.0,0.00022737,2]
[377968050,1754634639024,-460.0,0.00022738,2]
[377968052,1754634639034,-511.81610347,0.00022738,2]
[377968054,1754634639043,-460.0,0.00022738,2]
[377968056,1754634639052,-460.0,0.00022738,2]
[377968058,1754634639061,-460.0,0.00022738,2]
[377968060,1754634639072,-460.0,0.00022739,2]
[377968062,1754634639081,-460.0,0.00022739,2]
[377968064,1754634639092,-460.0,0.00022739,2]
[377968066,1754634639101,-437.22,0.0002289,10]
[377968068,1754634639111,-682.65,0.0002289,10]
[377968070,1754634639121,-682.65,0.0002289,10]
[377968072,1754634639130,-57719.26336987,0.000229,7]
[377968074,1754634639140,-461.45099301,0.000229,7]
[377968076,1754634639149,-160.40492878,0.000229,7]
[377968234,1754634640665,-12503.00646131,0.000229,7]
[377968236,1754634640675,-160.0,0.00022962,2]
[377968238,1754634640687,-527.68033864,0.00022962,2]
[377968240,1754634640697,-461.45099301,0.00022962,2]
[377968242,1754634640706,-215.36146706,0.00022962,2]
[377968244,1754634640716,-842.78739015,0.00022962,2]
[377968246,1754634640726,-160.0,0.00022962,2]
[377968248,1754634640735,-312.16666667,0.00022962,2]
[377968250,1754634640744,-12663.41139009,0.00022962,2]
[377968252,1754634640754,-160.0,0.00022962,2]
[377968254,1754634640764,-160.0,0.00022962,2]
[377968255,1754634640773,-216.5651299,0.00022962,2]
[377968257,1754634640782,-231.87430077,0.00022962,2]
[377968260,1754634640793,-160.0,0.00023,2]
[377968262,1754634640803,-193.86855023,0.00023,2]
[377968264,1754634640812,-1345.21929793,0.00023,2]
[377968266,1754634640823,-1339.95733894,0.00023,2]
[377968268,1754634640832,-500.0,0.00023,2]
[377968270,1754634640841,-460.0,0.00023011,2]
[377968272,1754634640850,-460.0,0.00023011,2]
[377968274,1754634640860,-460.0,0.00023011,2]
[377968276,1754634640870,-460.0,0.00023012,2]
[377968278,1754634640878,-460.0,0.00023012,2]
[377968280,1754634640888,-460.0,0.00023012,2]
[377968282,1754634640897,-460.0,0.00023012,2]
[377968284,1754634640907,-460.0,0.00023013,2]
[377968286,1754634640916,-460.0,0.00023013,2]
[377968288,1754634640926,-460.0,0.00023013,2]
[377968289,1754634640935,-500.0,0.0002304,2]
[377968291,1754634640944,-457.12436964,0.0002304,2]
[377968293,1754634640954,-212.25556227,0.00023056,2]
[377968295,1754634640963,-500.0,0.00023156,2]
[377968297,1754634640972,-201.14907317,0.00023156,2]
[377968299,1754634640982,-500.0,0.000232,2]
[377968301,1754634640991,-500.0,0.000232,2]
[377968303,1754634641000,-500.0,0.000232,2]
[377968305,1754634641009,-500.0,0.000232,2]
[377968307,1754634641018,-501.45234664,0.000232,2]
[377968309,1754634641027,-501.98414961,0.000232,2]
[377968311,1754634641037,-460.0,0.00023285,2]
[377968313,1754634641046,-460.0,0.00023285,2]
[377968314,1754634641056,-460.0,0.00023285,2]
[377968316,1754634641067,-460.0,0.00023286,2]
[377968318,1754634641076,-460.0,0.00023286,2]
[377968320,1754634641086,-540.49672642,0.00023286,2]
[377968322,1754634641095,-460.0,0.00023286,2]
[377968324,1754634641106,-460.0,0.00023287,2]
[377968326,1754634641116,-309.32055683,0.00023287,2]
[377968328,1754634641126,-460.0,0.00023287,2]
[377968330,1754634641135,-156.61045,0.00023379,7]
[377968332,1754634641144,-11304.18026727,0.00023409,2]
[377968334,1754634641153,-151.0,0.00023519,2]
[377968336,1754634641162,-151.0,0.00023519,2]
[377968338,1754634641171,-151.0,0.00023519,2]
[377968340,1754634641180,-151.0,0.00023519,2]
[377968342,1754634641190,-151.0,0.00023519,2]
[377968344,1754634641202,-151.0,0.00023519,2]
[377968346,1754634641211,-151.0,0.00023519,2]
[377968348,1754634641220,-151.0,0.00023519,2]
[377968350,1754634641230,-151.0,0.00023519,2]
[377968352,1754634641239,-151.0,0.00023519,2]
[377968354,1754634641249,-151.0,0.00023519,2]
[377968356,1754634641259,-151.0,0.00023519,2]
[377968358,1754634641268,-151.0,0.00023519,2]
[377968360,1754634641277,-420.0,0.00023539,2]
[377968362,1754634641286,-412.61,0.00023548,2]
[377968364,1754634641296,-460.0,0.00023559,2]
[377968366,1754634641305,-460.0,0.00023559,2]
[377968368,1754634641316,-460.0,0.00023559,2]
[377968370,1754634641325,-460.0,0.0002356,2]
[377968372,1754634641335,-460.0,0.0002356,2]
[377968373,1754634641343,-460.0,0.0002356,2]
[377968375,1754634641354,-460.0,0.00023561,2]
[377968377,1754634641365,-460.0,0.00023561,2]
[377968379,1754634641374,-1680.0,0.00023649,2]
[377968381,1754634641383,-1000.0,0.00023748,2]
[377968383,1754634641393,-160.0,0.000238,2]